{"text_format":"1","workbook":"xlsx","n_sheets":3,"sheets":["Front","IZVET Registration Form (EN)","İZVET Kayıt Formu"],"not_rendered":{"charts":0,"images":3,"macros":1,"external_links":0,"defined_names":2,"comments":0,"pivot_tables":0},"unopened":[],"bounds":{"document_bytes":16777216,"sheet_cells":100000,"rows_first":2000,"rows_last":500,"rows_between":2000,"halvings":0,"cell_chars":16384,"cell_head_chars":4096},"cells_cut":0,"cells_raw":0,"read":"whole","date_system":"1900"}

{"sheet":"Front","index":0,"n_rows":0,"n_cols":0,"rows_kept":0,"cut":false,"hidden":false,"merged":[]}

{"sheet":"IZVET Registration Form (EN)","index":1,"n_rows":58,"n_cols":39,"rows_kept":58,"cut":false,"hidden":false,"merged":[[46,1,46,2],[26,24,28,24],[29,24,31,24],[32,24,34,24],[35,24,37,24],[35,1,37,1],[23,24,25,24],[42,1,42,2],[43,1,43,2],[44,1,44,2],[45,1,45,2],[8,24,10,24],[11,24,13,24],[14,24,16,24],[17,24,19,24],[20,24,22,24],[1,1,2,10],[3,1,4,3],[3,4,4,10],[5,1,5,2],[5,4,6,10],[6,1,6,2],[35,6,37,6],[26,1,28,1],[26,6,28,6],[29,1,31,1],[29,6,31,6],[32,1,34,1],[32,6,34,6],[17,1,19,1],[17,6,19,6],[20,1,22,1],[20,6,22,6],[23,1,25,1],[23,6,25,6],[8,1,10,1],[8,6,10,6],[11,1,13,1],[11,6,13,6],[14,1,16,1],[14,6,16,6],[8,25,10,25],[8,26,10,26],[8,27,10,27],[8,28,10,28],[11,25,13,25],[11,26,13,26],[11,27,13,27],[11,28,13,28],[14,25,16,25],[14,26,16,26],[14,27,16,27],[14,28,16,28],[17,25,19,25],[17,26,19,26],[17,27,19,27],[17,28,19,28],[20,25,22,25],[20,26,22,26],[20,27,22,27],[20,28,22,28],[23,25,25,25],[23,26,25,26],[23,27,25,27],[23,28,25,28],[26,25,28,25],[26,26,28,26],[26,27,28,27],[26,28,28,28],[29,25,31,25],[29,26,31,26],[29,27,31,27],[29,28,31,28],[32,25,34,25],[32,26,34,26],[32,27,34,27],[32,28,34,28],[35,25,37,25],[35,26,37,26],[35,27,37,27],[35,28,37,28]]}
[]
[null,"\n\n        \n\n\n\n\n6th International Table Tennis Team Championships of Veterans Societies/Groups \n18th- 20th August 2017 - IZMIR - TURKEY"]
[]
[null,"Name of Veterans Society: "]
[]
[null,"Date of Arrival:",null,null,"Registration Deadline : 31 May 2017"]
[null,"Date of Departure:"]
[null,"Room No","Guest Name & Surname","Tournament Participant","Category","Date of Birth","Room Type","Hotel check in date","Hotel check out date","Players Party","City Sightseeing Tour",null,null,null,null,null,null,null,null,null,null,null,null,null,"S,D,T ?","Kaç Gece \nKonaklama","Gecelik \nKonaklama Fiyatı","Oda Ücreti Toplamı","Turnuva Katılım Ücreti"]
[null,1,null,null,null,null,{"$f":"+IF(Y9=1,\"Single\",IF(Y9=2,\"Double\",IF(Y9=3,\"Triple\",\"\")))","v":""},null,null,null,null,null,null,null,null,null,null,null,null,null,null,null,null,null,{"$f":"+COUNTA(H9:H11)","v":0},{"$f":"+I9-H9","v":0},{"$f":"INDEX($F$45:$F$47,Y9,1)","v":{"$error":"#VALUE!"}},{"$f":"AA9*Z9","v":{"$error":"#VALUE!"}},{"$f":"+IF(D9=\"Yes\",25,0)+IF(D10=\"Yes\",25,0)+IF(D11=\"Yes\",25,0)","v":0}]
[]
[null,null,null,null,null,null,null,null,null,null,null,null,null,null,null,null,null,null,null,null,null,null,null,null,null,null,null,null,null,null,null,null,null,"Yes","Single","W40-49",null,null,1930]
[null,2,null,null,null,null,{"$f":"+IF(Y12=1,\"Single\",IF(Y12=2,\"Double\",IF(Y12=3,\"Triple\",\"\")))","v":""},null,null,null,null,null,null,null,null,null,null,null,null,null,null,null,null,null,{"$f":"+COUNTA(H12:H14)","v":0},{"$f":"+I12-H12","v":0},{"$f":"INDEX($F$45:$F$47,Y12,1)","v":{"$error":"#VALUE!"}},{"$f":"AA12*Z12","v":{"$error":"#VALUE!"}},{"$f":"+IF(D12=\"Yes\",25,0)+IF(D13=\"Yes\",25,0)+IF(D14=\"Yes\",25,0)","v":0},null,null,null,null,"No","Double","W50-59","2017-08-12","2017-08-18",1931]
[null,null,null,null,null,null,null,null,null,null,null,null,null,null,null,null,null,null,null,null,null,null,null,null,null,null,null,null,null,null,null,null,null,null,"Extra Bed","W60-64","2017-08-13","2017-08-19",1932]
[null,null,null,null,null,null,null,null,null,null,null,null,null,null,null,null,null,null,null,null,null,null,null,null,null,null,null,null,null,null,null,null,null,null,null,"W65-69","2017-08-14","2017-08-20",1933]
[null,3,null,null,null,null,{"$f":"+IF(Y15=1,\"Single\",IF(Y15=2,\"Double\",IF(Y15=3,\"Triple\",\"\")))","v":""},null,null,null,null,null,null,null,null,null,null,null,null,null,null,null,null,null,{"$f":"+COUNTA(H15:H17)","v":0},{"$f":"+I15-H15","v":0},{"$f":"INDEX($F$45:$F$47,Y15,1)","v":{"$error":"#VALUE!"}},{"$f":"AA15*Z15","v":{"$error":"#VALUE!"}},{"$f":"+IF(D15=\"Yes\",25,0)+IF(D16=\"Yes\",25,0)+IF(D17=\"Yes\",25,0)","v":0},null,null,null,null,null,null,"W70-74","2017-08-15","2017-08-21",1934]
[null,null,null,null,null,null,null,null,null,null,null,null,null,null,null,null,null,null,null,null,null,null,null,null,null,null,null,null,null,null,null,null,null,null,null,"W75+","2017-08-16","2017-08-22",1935]
[null,null,null,null,null,null,null,null,null,null,null,null,null,null,null,null,null,null,null,null,null,null,null,null,null,null,null,null,null,null,null,null,null,null,null,"M40-49","2017-08-17","2017-08-23",1936]
[null,4,null,null,null,null,{"$f":"+IF(Y18=1,\"Single\",IF(Y18=2,\"Double\",IF(Y18=3,\"Triple\",\"\")))","v":""},null,null,null,null,null,null,null,null,null,null,null,null,null,null,null,null,null,{"$f":"+COUNTA(H18:H20)","v":0},{"$f":"+I18-H18","v":0},{"$f":"INDEX($F$45:$F$47,Y18,1)","v":{"$error":"#VALUE!"}},{"$f":"AA18*Z18","v":{"$error":"#VALUE!"}},{"$f":"+IF(D18=\"Yes\",25,0)+IF(D19=\"Yes\",25,0)+IF(D20=\"Yes\",25,0)","v":0},null,null,null,null,null,null,"M50-59","2017-08-18","2017-08-24",1937]
[null,null,null,null,null,null,null,null,null,null,null,null,null,null,null,null,null,null,null,null,null,null,null,null,null,null,null,null,null,null,null,null,null,null,null,"M60-64","2017-08-19","2017-08-25",1938]
[null,null,null,null,null,null,null,null,null,null,null,null,null,null,null,null,null,null,null,null,null,null,null,null,null,null,null,null,null,null,null,null,null,null,null,"M65-69",null,"2017-08-26",1939]
[null,5,null,null,null,null,{"$f":"+IF(Y21=1,\"Single\",IF(Y21=2,\"Double\",IF(Y21=3,\"Triple\",\"\")))","v":""},null,null,null,null,null,null,null,null,null,null,null,null,null,null,null,null,null,{"$f":"+COUNTA(H21:H23)","v":0},{"$f":"+I21-H21","v":0},{"$f":"INDEX($F$45:$F$47,Y21,1)","v":{"$error":"#VALUE!"}},{"$f":"AA21*Z21","v":{"$error":"#VALUE!"}},{"$f":"+IF(D21=\"Yes\",25,0)+IF(D22=\"Yes\",25,0)+IF(D23=\"Yes\",25,0)","v":0},null,null,null,null,null,null,"M70-74",null,"2017-08-27",1940]
[null,null,null,null,null,null,null,null,null,null,null,null,null,null,null,null,null,null,null,null,null,null,null,null,null,null,null,null,null,null,null,null,null,null,null,"M75+",null,null,1941]
[null,null,null,null,null,null,null,null,null,null,null,null,null,null,null,null,null,null,null,null,null,null,null,null,null,null,null,null,null,null,null,null,null,null,null,null,null,null,1942]
[null,6,null,null,null,null,{"$f":"+IF(Y24=1,\"Single\",IF(Y24=2,\"Double\",IF(Y24=3,\"Triple\",\"\")))","v":""},null,null,null,null,null,null,null,null,null,null,null,null,null,null,null,null,null,{"$f":"+COUNTA(H24:H26)","v":0},{"$f":"+I24-H24","v":0},{"$f":"INDEX($F$45:$F$47,Y24,1)","v":{"$error":"#VALUE!"}},{"$f":"AA24*Z24","v":{"$error":"#VALUE!"}},{"$f":"+IF(D24=\"Yes\",25,0)+IF(D25=\"Yes\",25,0)+IF(D26=\"Yes\",25,0)","v":0},null,null,null,null,null,null,null,null,null,1943]
[null,null,null,null,null,null,null,null,null,null,null,null,null,null,null,null,null,null,null,null,null,null,null,null,null,null,null,null,null,null,null,null,null,null,null,null,null,null,1944]
[null,null,null,null,null,null,null,null,null,null,null,null,null,null,null,null,null,null,null,null,null,null,null,null,null,null,null,null,null,null,null,null,null,null,null,null,null,null,1945]
[null,7,null,null,null,null,{"$f":"+IF(Y27=1,\"Single\",IF(Y27=2,\"Double\",IF(Y27=3,\"Triple\",\"\")))","v":""},null,null,null,null,null,null,null,null,null,null,null,null,null,null,null,null,null,{"$f":"+COUNTA(H27:H29)","v":0},{"$f":"+I27-H27","v":0},{"$f":"INDEX($F$45:$F$47,Y27,1)","v":{"$error":"#VALUE!"}},{"$f":"AA27*Z27","v":{"$error":"#VALUE!"}},{"$f":"+IF(D27=\"Yes\",25,0)+IF(D28=\"Yes\",25,0)+IF(D29=\"Yes\",25,0)","v":0},null,null,null,null,null,null,null,null,null,1946]
[null,null,null,null,null,null,null,null,null,null,null,null,null,null,null,null,null,null,null,null,null,null,null,null,null,null,null,null,null,null,null,null,null,null,null,null,null,null,1947]
[null,null,null,null,null,null,null,null,null,null,null,null,null,null,null,null,null,null,null,null,null,null,null,null,null,null,null,null,null,null,null,null,null,null,null,null,null,null,1948]
[null,8,null,null,null,null,{"$f":"+IF(Y30=1,\"Single\",IF(Y30=2,\"Double\",IF(Y30=3,\"Triple\",\"\")))","v":""},null,null,null,null,null,null,null,null,null,null,null,null,null,null,null,null,null,{"$f":"+COUNTA(H30:H32)","v":0},{"$f":"+I30-H30","v":0},{"$f":"INDEX($F$45:$F$47,Y30,1)","v":{"$error":"#VALUE!"}},{"$f":"AA30*Z30","v":{"$error":"#VALUE!"}},{"$f":"+IF(D30=\"Yes\",25,0)+IF(D31=\"Yes\",25,0)+IF(D32=\"Yes\",25,0)","v":0},null,null,null,null,null,null,null,null,null,1949]
[null,null,null,null,null,null,null,null,null,null,null,null,null,null,null,null,null,null,null,null,null,null,null,null,null,null,null,null,null,null,null,null,null,null,null,null,null,null,1950]
[null,null,null,null,null,null,null,null,null,null,null,null,null,null,null,null,null,null,null,null,null,null,null,null,null,null,null,null,null,null,null,null,null,null,null,null,null,null,1951]
[null,9,null,null,null,null,{"$f":"+IF(Y33=1,\"Single\",IF(Y33=2,\"Double\",IF(Y33=3,\"Triple\",\"\")))","v":""},null,null,null,null,null,null,null,null,null,null,null,null,null,null,null,null,null,{"$f":"+COUNTA(H33:H35)","v":0},{"$f":"+I33-H33","v":0},{"$f":"INDEX($F$45:$F$47,Y33,1)","v":{"$error":"#VALUE!"}},{"$f":"AA33*Z33","v":{"$error":"#VALUE!"}},{"$f":"+IF(D33=\"Yes\",25,0)+IF(D34=\"Yes\",25,0)+IF(D35=\"Yes\",25,0)","v":0},null,null,null,null,null,null,null,null,null,1952]
[null,null,null,null,null,null,null,null,null,null,null,null,null,null,null,null,null,null,null,null,null,null,null,null,null,null,null,null,null,null,null,null,null,null,null,null,null,null,1953]
[null,null,null,null,null,null,null,null,null,null,null,null,null,null,null,null,null,null,null,null,null,null,null,null,null,null,null,null,null,null,null,null,null,null,null,null,null,null,1954]
[null,10,null,null,null,null,{"$f":"+IF(Y36=1,\"Single\",IF(Y36=2,\"Double\",IF(Y36=3,\"Triple\",\"\")))","v":""},null,null,null,null,null,null,null,null,null,null,null,null,null,null,null,null,null,{"$f":"+COUNTA(H36:H38)","v":0},{"$f":"+I36-H36","v":0},{"$f":"INDEX($F$45:$F$47,Y36,1)","v":{"$error":"#VALUE!"}},{"$f":"AA36*Z36","v":{"$error":"#VALUE!"}},{"$f":"+IF(D36=\"Yes\",25,0)+IF(D37=\"Yes\",25,0)+IF(D38=\"Yes\",25,0)","v":0},null,null,null,null,null,null,null,null,null,1955]
[null,null,null,null,null,null,null,null,null,null,null,null,null,null,null,null,null,null,null,null,null,null,null,null,null,null,null,null,null,null,null,null,null,null,null,null,null,null,1956]
[null,null,null,null,null,null,null,null,null,null,null,null,null,null,null,null,null,null,null,null,null,null,null,null,null,null,null,null,null,null,null,null,null,null,null,null,null,null,1957]
[null,null,null,null,null,null,null,null,null,null,null,null,null,null,null,null,null,null,null,null,null,null,null,null,null,null,null,null,null,null,null,null,null,null,null,null,null,null,1958]
[null,null,null,null,null,null,null,null,null,null,null,null,null,null,null,null,null,null,null,null,null,null,null,null,null,null,null,null,null,null," ",null,null,null,null,null,null,null,1959]
[null,null,null,null,null,null,null,null,null,null,null,null,null,null,null,null,null,null,null,null,null,null,null,null,null,null,null,null,null,null,null,null,null,null,null,null,null,null,1960]
[null,"FEES ",null,"Amount per Person","Quantity","Accommodation \nNight","Total",null,null,null,null,null,null,null,null,null,null,null,null,null,null,null,null,null,null,null,null,null,null,null,null,null,null,null,null,null,null,null,1961]
[null,"Entry Fee for players/substitutes",null,25,{"$f":"+COUNTIF(D9:D38,\"Yes\")","v":0},null,{"$f":"+E43*D43","v":0},null,null,null,null,null,null,null,null,null,null,null,null,null,null,null,null,null,null,null,null,null,null,null,null,null,null,null,null,null,null,null,1962]
[null,"Players Party at Kaya Thermal",null,25,{"$f":"+COUNTIF(J9:J38,\"Yes\")","v":0},null,{"$f":"+E44*D44","v":0},null,null,null,null,null,null,null,null,null,null,null,null,null,null,null,null,null,null,null,null,null,null,null,null,null,null,null,null,null,null,null,1963]
[null,"Accommodation Kaya Thermal Single",null,85,{"$f":"+COUNTIF($G$9:$G$38,\"Single\")","v":0},{"$f":"SUMIF($G$9:$G$38,\"Single\",$Z$9:$Z$38)","v":0},{"$f":"+F45*D45","v":0},null,null,null,null,null,null,null,null,null,null,null,null,null,null,null,null,null,null,null,null,null,null,null,null,null,null,null,null,null,null,null,1964]
[null,"Accommodation at KayaThermal Double",null,110,{"$f":"+COUNTIF($G$9:$G$38,\"Double\")","v":0},{"$f":"SUMIF($G$9:$G$38,\"Double\",$Z$9:$Z$38)","v":0},{"$f":"+F46*D46","v":0},null,null,null,null,null,null,null,null,null,null,null,null,null,null,null,null,null,null,null,null,null,null,null,null,null,null,null,null,null,null,null,1965]
[null,"Accommodation Kaya Thermal Triple",null,135,{"$f":"+COUNTIF($G$9:$G$38,\"Triple\")","v":0},{"$f":"SUMIF($G$9:$G$38,\"Triple\",$Z$9:$Z$38)","v":0},{"$f":"+F47*D47","v":0},null,null,null,null,null,null,null,null,null,null,null,null,null,null,null,null,null,null,null,null,null,null,null,null,null,null,null,null,null,null,null,1966]
[null,null,null,null,null,"TOTAL ",{"$f":"SUM(G43:G47)","v":0},null,null,null,null,null,null,null,null,null,null,null,null,null,null,null,null,null,null,null,null,null,null,null,null,null,null,null,null,null,null,null,1967]
[null,null,null,null,null,null,null,null,null,null,null,null,null,null,null,null,null,null,null,null,null,null,null,null,null,null,null,null,null,null,null,null,null,null,null,null,null,null,1968]
[null,null,null,null,null,null,null,null,null,null,null,null,null,null,null,null,null,null,null,null,null,null,null,null,null,null,null,null,null,null,null,null,null,null,null,null,null,null,1969]
[null,null,null,null,null,null,null,null,null,null,null,null,null,null,null,null,null,null,null,null,null,null,null,null,null,null,null,null,null,null,null,null,null,null,null,null,null,null,1970]
[null,null,null,null,null,null,null,null,null,null,null,null,null,null,null,null,null,null,null,null,null,null,null,null,null,null,null,null,null,null,null,null,null,null,null,null,null,null,1971]
[null,null,null,null,null,null,null,null,null,null,null,null,null,null,null,null,null,null,null,null,null,null,null,null,null,null,null,null,null,null,null,null,null,null,null,null,null,null,1972]
[null,null,null,null,null,null,null,null,null,null,null,null,null,null,null,null,null,null,null,null,null,null,null,null,null,null,null,null,null,null,null,null,null,null,null,null,null,null,1973]
[null,null,null,null,null,null,null,null,null,null,null,null,null,null,null,null,null,null,null,null,null,null,null,null,null,null,null,null,null,null,null,null,null,null,null,null,null,null,1974]
[null,null,null,null,null,null,null,null,null,null,null,null,null,null,null,null,null,null,null,null,null,null,null,null,null,null,null,null,null,null,null,null,null,null,null,null,null,null,1975]
[null,null,null,null,null,null,null,null,null,null,null,null,null,null,null,null,null,null,null,null,null,null,null,null,null,null,null,null,null,null,null,null,null,null,null,null,null,null,1976]
[null,null,null,null,null,null,null,null,null,null,null,null,null,null,null,null,null,null,null,null,null,null,null,null,null,null,null,null,null,null,null,null,null,null,null,null,null,null,1977]

{"sheet":"İZVET Kayıt Formu","index":2,"n_rows":58,"n_cols":39,"rows_kept":58,"cut":false,"hidden":false,"merged":[[47,8,47,10],[42,1,42,2],[43,1,43,2],[44,1,44,2],[45,1,45,2],[46,1,46,2],[42,9,42,10],[43,9,43,10],[44,9,44,10],[45,9,45,10],[46,8,46,10],[29,28,31,28],[41,1,41,2],[32,28,34,28],[35,1,37,1],[35,6,37,6],[35,24,37,24],[35,25,37,25],[35,26,37,26],[35,27,37,27],[35,28,37,28],[32,1,34,1],[41,8,41,10],[29,27,31,27],[32,6,34,6],[32,24,34,24],[32,25,34,25],[32,26,34,26],[32,27,34,27],[29,1,31,1],[29,6,31,6],[29,24,31,24],[29,25,31,25],[29,26,31,26],[23,27,25,27],[23,28,25,28],[20,1,22,1],[20,6,22,6],[26,1,28,1],[26,6,28,6],[26,24,28,24],[26,25,28,25],[26,26,28,26],[26,27,28,27],[26,28,28,28],[23,1,25,1],[23,6,25,6],[23,24,25,24],[23,25,25,25],[23,26,25,26],[20,24,22,24],[20,25,22,25],[20,26,22,26],[20,27,22,27],[14,28,16,28],[17,24,19,24],[17,25,19,25],[17,26,19,26],[20,28,22,28],[17,27,19,27],[17,28,19,28],[14,1,16,1],[14,6,16,6],[14,24,16,24],[14,25,16,25],[14,26,16,26],[14,27,16,27],[17,1,19,1],[17,6,19,6],[8,28,10,28],[11,1,13,1],[11,6,13,6],[11,24,13,24],[11,25,13,25],[11,26,13,26],[11,27,13,27],[11,28,13,28],[8,1,10,1],[8,6,10,6],[8,24,10,24],[8,25,10,25],[8,26,10,26],[8,27,10,27],[1,1,2,10],[3,1,4,3],[3,4,4,10],[5,1,5,2],[5,4,6,10],[6,1,6,2]]}
[]
[null,"\n\n        \n\n\n\n\n6. Uluslararası Masa Tenisi Veteran Takım Şampiyonası \n18 - 20 Ağustos 2017 - İZMİR - TÜRKİYE"]
[]
[null,"Veteran Derneği Adı: "]
[]
[null,"Geliş Tarihi :",null,null,"Son Kayıt Tarihi : 31 Mayıs 2017"]
[null,"Dönüş Tarihi :"]
[null,"Oda No","Konuk Adı-Soyadı","Turnuva Katılımcısı","Kategori","Doğum Tarihi","Misafir Sayısı","Otel Giriş Tarihi","Otel Çıkış Tarihi","Gala Kokteyli","Şehir Gezisi",null,null,null,null,null,null,null,null,null,null,null,null,null,"S,D,T ?","Kaç Gece \nKonaklama","Gecelik \nKonaklama Fiyatı","Oda Ücreti Toplamı","Turnuva Katılım Ücreti"]
[null,1,null,null,null,null,{"$f":"+IF(Y9=1,\"Single\",IF(Y9=2,\"Double\",IF(Y9=3,\"Triple\",\"\")))","v":""},null,null,null,null,null,null,null,null,null,null,null,null,null,null,null,null,null,{"$f":"+COUNTA(H9:H11)","v":0},{"$f":"+I9-H9","v":0},{"$f":"INDEX($F$45:$F$47,Y9,1)","v":{"$error":"#VALUE!"}},{"$f":"AA9*Z9","v":{"$error":"#VALUE!"}},{"$f":"+IF(D9=\"Yes\",25,0)+IF(D10=\"Yes\",25,0)+IF(D11=\"Yes\",25,0)","v":0}]
[]
[null,null,null,null,null,null,null,null,null,null,null,null,null,null,null,null,null,null,null,null,null,null,null,null,null,null,null,null,null,null,null,null,null,"Yes","Single","W40-49",null,null,1930]
[null,2,null,null,null,null,{"$f":"+IF(Y12=1,\"Single\",IF(Y12=2,\"Double\",IF(Y12=3,\"Triple\",\"\")))","v":""},null,null,null,null,null,null,null,null,null,null,null,null,null,null,null,null,null,{"$f":"+COUNTA(H12:H14)","v":0},{"$f":"+I12-H12","v":0},{"$f":"INDEX($F$45:$F$47,Y12,1)","v":{"$error":"#VALUE!"}},{"$f":"AA12*Z12","v":{"$error":"#VALUE!"}},{"$f":"+IF(D12=\"Yes\",25,0)+IF(D13=\"Yes\",25,0)+IF(D14=\"Yes\",25,0)","v":0},null,null,null,null,"No","Double","W50-59","2017-08-12","2017-08-18",1931]
[null,null,null,null,null,null,null,null,null,null,null,null,null,null,null,null,null,null,null,null,null,null,null,null,null,null,null,null,null,null,null,null,null,null,"Extra Bed","W60-64","2017-08-13","2017-08-19",1932]
[null,null,null,null,null,null,null,null,null,null,null,null,null,null,null,null,null,null,null,null,null,null,null,null,null,null,null,null,null,null,null,null,null,null,null,"W65-69","2017-08-14","2017-08-20",1933]
[null,3,null,null,null,null,{"$f":"+IF(Y15=1,\"Single\",IF(Y15=2,\"Double\",IF(Y15=3,\"Triple\",\"\")))","v":""},null,null,null,null,null,null,null,null,null,null,null,null,null,null,null,null,null,{"$f":"+COUNTA(H15:H17)","v":0},{"$f":"+I15-H15","v":0},{"$f":"INDEX($F$45:$F$47,Y15,1)","v":{"$error":"#VALUE!"}},{"$f":"AA15*Z15","v":{"$error":"#VALUE!"}},{"$f":"+IF(D15=\"Yes\",25,0)+IF(D16=\"Yes\",25,0)+IF(D17=\"Yes\",25,0)","v":0},null,null,null,null,null,null,"W70-74","2017-08-15","2017-08-21",1934]
[null,null,null,null,null,null,null,null,null,null,null,null,null,null,null,null,null,null,null,null,null,null,null,null,null,null,null,null,null,null,null,null,null,null,null,"W75+","2017-08-16","2017-08-22",1935]
[null,null,null,null,null,null,null,null,null,null,null,null,null,null,null,null,null,null,null,null,null,null,null,null,null,null,null,null,null,null,null,null,null,null,null,"M40-49","2017-08-17","2017-08-23",1936]
[null,4,null,null,null,null,{"$f":"+IF(Y18=1,\"Single\",IF(Y18=2,\"Double\",IF(Y18=3,\"Triple\",\"\")))","v":""},null,null,null,null,null,null,null,null,null,null,null,null,null,null,null,null,null,{"$f":"+COUNTA(H18:H20)","v":0},{"$f":"+I18-H18","v":0},{"$f":"INDEX($F$45:$F$47,Y18,1)","v":{"$error":"#VALUE!"}},{"$f":"AA18*Z18","v":{"$error":"#VALUE!"}},{"$f":"+IF(D18=\"Yes\",25,0)+IF(D19=\"Yes\",25,0)+IF(D20=\"Yes\",25,0)","v":0},null,null,null,null,null,null,"M50-59","2017-08-18","2017-08-24",1937]
[null,null,null,null,null,null,null,null,null,null,null,null,null,null,null,null,null,null,null,null,null,null,null,null,null,null,null,null,null,null,null,null,null,null,null,"M60-64","2017-08-19","2017-08-25",1938]
[null,null,null,null,null,null,null,null,null,null,null,null,null,null,null,null,null,null,null,null,null,null,null,null,null,null,null,null,null,null,null,null,null,null,null,"M65-69",null,"2017-08-26",1939]
[null,5,null,null,null,null,{"$f":"+IF(Y21=1,\"Single\",IF(Y21=2,\"Double\",IF(Y21=3,\"Triple\",\"\")))","v":""},null,null,null,null,null,null,null,null,null,null,null,null,null,null,null,null,null,{"$f":"+COUNTA(H21:H23)","v":0},{"$f":"+I21-H21","v":0},{"$f":"INDEX($F$45:$F$47,Y21,1)","v":{"$error":"#VALUE!"}},{"$f":"AA21*Z21","v":{"$error":"#VALUE!"}},{"$f":"+IF(D21=\"Yes\",25,0)+IF(D22=\"Yes\",25,0)+IF(D23=\"Yes\",25,0)","v":0},null,null,null,null,null,null,"M70-74",null,"2017-08-27",1940]
[null,null,null,null,null,null,null,null,null,null,null,null,null,null,null,null,null,null,null,null,null,null,null,null,null,null,null,null,null,null,null,null,null,null,null,"M75+",null,null,1941]
[null,null,null,null,null,null,null,null,null,null,null,null,null,null,null,null,null,null,null,null,null,null,null,null,null,null,null,null,null,null,null,null,null,null,null,null,null,null,1942]
[null,6,null,null,null,null,{"$f":"+IF(Y24=1,\"Single\",IF(Y24=2,\"Double\",IF(Y24=3,\"Triple\",\"\")))","v":""},null,null,null,null,null,null,null,null,null,null,null,null,null,null,null,null,null,{"$f":"+COUNTA(H24:H26)","v":0},{"$f":"+I24-H24","v":0},{"$f":"INDEX($F$45:$F$47,Y24,1)","v":{"$error":"#VALUE!"}},{"$f":"AA24*Z24","v":{"$error":"#VALUE!"}},{"$f":"+IF(D24=\"Yes\",25,0)+IF(D25=\"Yes\",25,0)+IF(D26=\"Yes\",25,0)","v":0},null,null,null,null,null,null,null,null,null,1943]
[null,null,null,null,null,null,null,null,null,null,null,null,null,null,null,null,null,null,null,null,null,null,null,null,null,null,null,null,null,null,null,null,null,null,null,null,null,null,1944]
[null,null,null,null,null,null,null,null,null,null,null,null,null,null,null,null,null,null,null,null,null,null,null,null,null,null,null,null,null,null,null,null,null,null,null,null,null,null,1945]
[null,7,null,null,null,null,{"$f":"+IF(Y27=1,\"Single\",IF(Y27=2,\"Double\",IF(Y27=3,\"Triple\",\"\")))","v":""},null,null,null,null,null,null,null,null,null,null,null,null,null,null,null,null,null,{"$f":"+COUNTA(H27:H29)","v":0},{"$f":"+I27-H27","v":0},{"$f":"INDEX($F$45:$F$47,Y27,1)","v":{"$error":"#VALUE!"}},{"$f":"AA27*Z27","v":{"$error":"#VALUE!"}},{"$f":"+IF(D27=\"Yes\",25,0)+IF(D28=\"Yes\",25,0)+IF(D29=\"Yes\",25,0)","v":0},null,null,null,null,null,null,null,null,null,1946]
[null,null,null,null,null,null,null,null,null,null,null,null,null,null,null,null,null,null,null,null,null,null,null,null,null,null,null,null,null,null,null,null,null,null,null,null,null,null,1947]
[null,null,null,null,null,null,null,null,null,null,null,null,null,null,null,null,null,null,null,null,null,null,null,null,null,null,null,null,null,null,null,null,null,null,null,null,null,null,1948]
[null,8,null,null,null,null,{"$f":"+IF(Y30=1,\"Single\",IF(Y30=2,\"Double\",IF(Y30=3,\"Triple\",\"\")))","v":""},null,null,null,null,null,null,null,null,null,null,null,null,null,null,null,null,null,{"$f":"+COUNTA(H30:H32)","v":0},{"$f":"+I30-H30","v":0},{"$f":"INDEX($F$45:$F$47,Y30,1)","v":{"$error":"#VALUE!"}},{"$f":"AA30*Z30","v":{"$error":"#VALUE!"}},{"$f":"+IF(D30=\"Yes\",25,0)+IF(D31=\"Yes\",25,0)+IF(D32=\"Yes\",25,0)","v":0},null,null,null,null,null,null,null,null,null,1949]
[null,null,null,null,null,null,null,null,null,null,null,null,null,null,null,null,null,null,null,null,null,null,null,null,null,null,null,null,null,null,null,null,null,null,null,null,null,null,1950]
[null,null,null,null,null,null,null,null,null,null,null,null,null,null,null,null,null,null,null,null,null,null,null,null,null,null,null,null,null,null,null,null,null,null,null,null,null,null,1951]
[null,9,null,null,null,null,{"$f":"+IF(Y33=1,\"Single\",IF(Y33=2,\"Double\",IF(Y33=3,\"Triple\",\"\")))","v":""},null,null,null,null,null,null,null,null,null,null,null,null,null,null,null,null,null,{"$f":"+COUNTA(H33:H35)","v":0},{"$f":"+I33-H33","v":0},{"$f":"INDEX($F$45:$F$47,Y33,1)","v":{"$error":"#VALUE!"}},{"$f":"AA33*Z33","v":{"$error":"#VALUE!"}},{"$f":"+IF(D33=\"Yes\",25,0)+IF(D34=\"Yes\",25,0)+IF(D35=\"Yes\",25,0)","v":0},null,null,null,null,null,null,null,null,null,1952]
[null,null,null,null,null,null,null,null,null,null,null,null,null,null,null,null,null,null,null,null,null,null,null,null,null,null,null,null,null,null,null,null,null,null,null,null,null,null,1953]
[null,null,null,null,null,null,null,null,null,null,null,null,null,null,null,null,null,null,null,null,null,null,null,null,null,null,null,null,null,null,null,null,null,null,null,null,null,null,1954]
[null,10,null,null,null,null,{"$f":"+IF(Y36=1,\"Single\",IF(Y36=2,\"Double\",IF(Y36=3,\"Triple\",\"\")))","v":""},null,null,null,null,null,null,null,null,null,null,null,null,null,null,null,null,null,{"$f":"+COUNTA(H36:H38)","v":0},{"$f":"+I36-H36","v":0},{"$f":"INDEX($F$45:$F$47,Y36,1)","v":{"$error":"#VALUE!"}},{"$f":"AA36*Z36","v":{"$error":"#VALUE!"}},{"$f":"+IF(D36=\"Yes\",25,0)+IF(D37=\"Yes\",25,0)+IF(D38=\"Yes\",25,0)","v":0},null,null,null,null,null,null,null,null,null,1955]
[null,null,null,null,null,null,null,null,null,null,null,null,null,null,null,null,null,null,null,null,null,null,null,null,null,null,null,null,null,null,null,null,null,null,null,null,null,null,1956]
[null,null,null,null,null,null,null,null,null,null,null,null,null,null,null,null,null,null,null,null,null,null,null,null,null,null,null,null,null,null,null,null,null,null,null,null,null,null,1957]
[null,null,null,null,null,null,null,null,null,null,null,null,null,null,null,null,null,null,null,null,null,null,null,null,null,null,null,null,null,null,null,null,null,null,null,null,null,null,1958]
[null,null,null,null,null,null,null,null,null,null,null,null,null,null,null,null,null,null,null,null,null,null,null,null,null,null,null,null,null,null," ",null,null,null,null,null,null,null,1959]
[null,null,null,null,null,null,null,null,null,null,null,null,null,null,null,null,null,null,null,null,null,null,null,null,null,null,null,null,null,null,null,null,null,null,null,null,null,null,1960]
[null,"ÜCRETLER",null,"Kişi başı Ücret","Adet","Konaklama \n(Adet)","TOPLAM",null,"Lütfen toplam ücreti 15 Nisan 2017 tarihinden önce aşağıdaki banka hesabına transfer ediniz.",null,null,null,null,null,null,null,null,null,null,null,null,null,null,null,null,null,null,null,null,null,null,null,null,null,null,null,null,null,1961]
[null,"Entry Fee for players/substitutes",null,100,{"$f":"+COUNTIF(D9:D38,\"Yes\")","v":0},null,{"$f":"+E43*D43","v":0},null,"Hesap Adı","İZVET- İzmir Veteran Masa Teniscileri Spor Kulübü Derneği",null,null,null,null,null,null,null,null,null,null,null,null,null,null,null,null,null,null,null,null,null,null,null,null,null,null,null,null,1962]
[null,"Players Party at Kaya Thermal",null,100,{"$f":"+COUNTIF(J9:J38,\"Yes\")","v":0},null,{"$f":"+E44*D44","v":0},null,"Banka Bilgileri:","Yapı Kredi Bankası-Çamdibi Şubesi",null,null,null,null,null,null,null,null,null,null,null,null,null,null,null,null,null,null,null,null,null,null,null,null,null,null,null,null,1963]
[null,"Accommodation Kaya Thermal Single",null,300,{"$f":"+COUNTIF($G$9:$G$38,\"Single\")","v":0},{"$f":"SUMIF($G$9:$G$38,\"Single\",$Z$9:$Z$38)","v":0},{"$f":"+F45*D45","v":0},null,"IBAN No:","TR77 0006 7010 0000 0088 0198 10",null,null,null,null,null,null,null,null,null,null,null,null,null,null,null,null,null,null,null,null,null,null,null,null,null,null,null,null,1964]
[null,"Accommodation at KayaThermal Double",null,400,{"$f":"+COUNTIF($G$9:$G$38,\"Double\")","v":0},{"$f":"SUMIF($G$9:$G$38,\"Double\",$Z$9:$Z$38)","v":0},{"$f":"+F46*D46","v":0},null,"Hesap No",88019810,null,null,null,null,null,null,null,null,null,null,null,null,null,null,null,null,null,null,null,null,null,null,null,null,null,null,null,null,1965]
[null,"Accommodation Kaya Thermal Triple",null,500,{"$f":"+COUNTIF($G$9:$G$38,\"Triple\")","v":0},{"$f":"SUMIF($G$9:$G$38,\"Triple\",$Z$9:$Z$38)","v":0},{"$f":"+F47*D47","v":0},null,"Lütfen bu formda talep edilen tüm bilgileri doldurun ve dosyayı aşağıdaki adrese mail ile gönderin :",null,null,null,null,null,null,null,null,null,null,null,null,null,null,null,null,null,null,null,null,null,null,null,null,null,null,null,null,null,1966]
[null,null,null,null,null,"TOPLAM",{"$f":"SUM(G43:G47)","v":0},null,"zafer.yildirim@izvet.com.tr",null,null,null,null,null,null,null,null,null,null,null,null,null,null,null,null,null,null,null,null,null,null,null,null,null,null,null,null,null,1967]
[null,null,null,null,null,null,null,null,null,null,null,null,null,null,null,null,null,null,null,null,null,null,null,null,null,null,null,null,null,null,null,null,null,null,null,null,null,null,1968]
[null,null,null,null,null,null,null,null,null,null,null,null,null,null,null,null,null,null,null,null,null,null,null,null,null,null,null,null,null,null,null,null,null,null,null,null,null,null,1969]
[null,null,null,null,null,null,null,null,null,null,null,null,null,null,null,null,null,null,null,null,null,null,null,null,null,null,null,null,null,null,null,null,null,null,null,null,null,null,1970]
[null,null,null,null,null,null,null,null,null,null,null,null,null,null,null,null,null,null,null,null,null,null,null,null,null,null,null,null,null,null,null,null,null,null,null,null,null,null,1971]
[null,null,null,null,null,null,null,null,null,null,null,null,null,null,null,null,null,null,null,null,null,null,null,null,null,null,null,null,null,null,null,null,null,null,null,null,null,null,1972]
[null,null,null,null,null,null,null,null,null,null,null,null,null,null,null,null,null,null,null,null,null,null,null,null,null,null,null,null,null,null,null,null,null,null,null,null,null,null,1973]
[null,null,null,null,null,null,null,null,null,null,null,null,null,null,null,null,null,null,null,null,null,null,null,null,null,null,null,null,null,null,null,null,null,null,null,null,null,null,1974]
[null,null,null,null,null,null,null,null,null,null,null,null,null,null,null,null,null,null,null,null,null,null,null,null,null,null,null,null,null,null,null,null,null,null,null,null,null,null,1975]
[null,null,null,null,null,null,null,null,null,null,null,null,null,null,null,null,null,null,null,null,null,null,null,null,null,null,null,null,null,null,null,null,null,null,null,null,null,null,1976]
[null,null,null,null,null,null,null,null,null,null,null,null,null,null,null,null,null,null,null,null,null,null,null,null,null,null,null,null,null,null,null,null,null,null,null,null,null,null,1977]